fUSD/lending_fUSD_20240915
["ID","MTS","AMOUNT","RATE_DAILY","PERIOD"]
[338232398,1726403432603,-150.0,0.0001276,2]
[338232400,1726403432612,-150.0,0.00012762,2]
[338232402,1726403432623,-150.0,0.00012777,2]
[338232403,1726403432632,-255.82175671,0.00012789,2]
[338232404,1726403432641,-150.0,0.00012799,2]
[338232405,1726403432651,-1000.0,0.000128,2]
[338232406,1726403432660,-1242.15207238,0.000128,2]
[338232409,1726403432676,-3186.53480063,0.000128,2]
[338232411,1726403432687,-6036.6456329,0.000128,2]
[338232413,1726403432697,-2700.0,0.000128,2]
[338232415,1726403432708,-845.87545876,0.000128,2]
[338232417,1726403432719,-1028.79,0.000128,2]
[338232419,1726403432730,-9669.50989184,0.000128,2]
[338232423,1726403432758,-1674.56555788,0.000128,2]
[338232426,1726403432768,-4507.06363913,0.000128,2]
[338232428,1726403432780,-7776.89948567,0.000128,2]
[338232438,1726403438522,-1244.54999999,0.0001273,2]
[338232439,1726403438533,-13593.5279083,0.0001273,2]
[338232440,1726403438545,-1169.55400002,0.0001273,2]
[338232441,1726403438607,-9484.0,0.0001273,2]
[338232442,1726403438618,-319.17751283,0.0001273,2]
[338232443,1726403438629,-526.17759152,0.0001273,2]
[338232444,1726403438726,-11273.86316313,0.0001273,2]
[338232445,1726403438736,-206331.96346081,0.000128,2]
[338232446,1726403438746,-1500.0,0.00012809,2]
[338232447,1726403438755,-204.91893502,0.00012827,2]
[338232448,1726403438765,-150.0,0.00012849,2]
[338232449,1726403438774,-150.0,0.00012854,2]
[338232450,1726403438783,-150.0,0.00012856,2]
[338232451,1726403438793,-326.45292,0.0001287,2]
[338232452,1726403438803,-1500.0,0.00012872,2]
[338232453,1726403438812,-150.0,0.00012875,2]
[338232454,1726403438821,-1500.0,0.00012879,2]
[338232455,1726403438831,-150.0,0.00012882,2]
[338232456,1726403438840,-150.0,0.00012884,2]
[338232457,1726403438849,-10000.0,0.0001289,2]
[338232458,1726403438858,-310.35504543,0.00012899,2]
[338232459,1726403438867,-310.35504542,0.00012899,2]
[338232460,1726403438876,-310.35504542,0.000129,2]
[338232461,1726403438886,-100000.0,0.000129,2]
[338232462,1726403438895,-3918.16145594,0.000129,2]
[338232463,1726403438904,-7500.0,0.000129,2]
[338232464,1726403438913,-518.880294,0.000129,2]
[338232465,1726403438923,-152.79080492,0.000129,2]
[338232466,1726403438932,-151.16962535,0.000129,2]
[338232467,1726403438941,-150.0,0.000129,2]
[338232468,1726403438950,-310.35504542,0.000129,2]
[338232469,1726403438959,-7222.45020124,0.000129,2]
[338232470,1726403438968,-1500.0,0.00012908,2]
[338232471,1726403438977,-150.0,0.00012909,2]
[338232472,1726403438986,-199.94,0.00012913,2]
[338232473,1726403438996,-171.777,0.00012913,2]
[338232474,1726403439005,-150.0,0.00012913,2]
[338232475,1726403439014,-150.0,0.00012913,2]
[338232476,1726403439023,-311.27857499,0.00012933,2]
[338232477,1726403439032,-150.0,0.00012946,2]
[338232478,1726403439042,-150.0,0.00012954,2]
[338232479,1726403439051,-150.0,0.00012958,2]
[338232480,1726403439060,-150.0,0.00012959,2]
[338232481,1726403439070,-150.0,0.00012961,2]
[338232482,1726403439079,-1500.0,0.0001297,2]
[338232483,1726403439088,-160.0,0.00012973,2]
[338232484,1726403439097,-150.23071742,0.00012973,2]
[338232485,1726403439107,-160.26865555,0.00012973,2]
[338232486,1726403439116,-539.86947452,0.00012973,2]
[338232487,1726403439125,-600.0,0.00012973,2]
[338232488,1726403439134,-196.24514517,0.00012973,2]
[338232489,1726403439145,-500.0,0.00012973,2]
[338232490,1726403439154,-500.0,0.00012973,2]
[338232491,1726403439163,-400.38227572,0.00012973,2]
[338232492,1726403439173,-150.0,0.00012979,2]
[338232493,1726403439182,-1500.0,0.00012982,2]
[338232494,1726403439194,-150.56,0.0001299,2]
[338232495,1726403439203,-386.87063074,0.0001299,2]
[338232496,1726403439212,-386.87063074,0.0001299,2]
[338232497,1726403439223,-386.87063074,0.0001299,2]
[338232498,1726403439232,-5103.2371402,0.00012993,2]
[338232499,1726403439241,-390.8207328,0.00012993,2]
[338232500,1726403439251,-2794.073925,0.00012993,2]
[338232501,1726403439260,-150.0,0.00012994,2]
[338232502,1726403439270,-500.0,0.00012999,2]
[338232503,1726403439279,-500.0,0.00012999,2]
[338232504,1726403439288,-531.22518082,0.00012999,2]
[338232505,1726403439298,-152.67589979,0.00012999,2]
[338232506,1726403439308,-1597.01300107,0.00012999,2]
[338232507,1726403439317,-1000.0,0.00012999,2]
[338232508,1726403439327,-1000.0,0.00012999,2]
[338232509,1726403439336,-1000.0,0.00012999,2]
[338232510,1726403439345,-1000.0,0.00012999,2]
[338232511,1726403439354,-1000.0,0.00012999,2]
[338232512,1726403439363,-1000.0,0.00012999,2]
[338232513,1726403439373,-1012.99897828,0.00012999,2]
[338232514,1726403439382,-538.0,0.00012999,2]
[338232515,1726403439391,-476.81878037,0.00013,2]
[338232516,1726403439400,-228.24389106,0.00013,2]
[338232517,1726403439411,-13435.72511015,0.00013,2]
[338232518,1726403439420,-1360104.45047978,0.00013,2]
[338232519,1726403439429,-647192.04973181,0.00013,2]
[338232520,1726403439442,-5811.84764848,0.00013,2]
[338232521,1726403439453,-353.01173433,0.00013,2]
[338232522,1726403439464,-521.17192969,0.00013,2]
[338232523,1726403439475,-424.79146568,0.00013,2]
[338232524,1726403439508,395.69,0.00011945,2]
[338232526,1726403440261,-1563.01664719,0.0001289,2]
[338232527,1726403440274,-5376.99989428,0.0001289,2]
[338232528,1726403440284,-2042.21931515,0.00013,2]
[338232529,1726403440296,-1352.59422969,0.00013,2]
[338232530,1726403440308,-2408.76417884,0.00013,2]
[338232531,1726403440325,-150.0,0.00012938,2]
[338232532,1726403440335,-4430279.42374854,0.00013,2]
[338232533,1726403440345,-6625533.23810708,0.00013,2]
[338232534,1726403440355,-28619.07373641,0.00013,2]
[338232535,1726403440364,-2000.0,0.00013,2]
[338232536,1726403440374,-200.0,0.00013,2]
[338232537,1726403440384,-152.862636,0.00013,2]
[338232538,1726403440394,-151.0,0.00013,2]
[338232539,1726403440403,-151.0,0.00013,2]
[338232540,1726403440413,-151.0,0.00013,2]
[338232541,1726403440423,-151.0,0.00013,2]
[338232542,1726403440433,-151.0,0.00013,2]
[338232543,1726403440444,-151.0,0.00013,2]
[338232544,1726403440454,-151.0,0.00013,2]
[338232545,1726403440464,-151.0,0.00013,2]
[338232546,1726403440474,-151.0,0.00013,2]
[338232547,1726403440485,-151.653787,0.00013,2]
[338232548,1726403440495,-151.0,0.00013,2]
[338232549,1726403440505,-151.0,0.00013,2]
[338232550,1726403440515,-151.0,0.00013,2]
[338232551,1726403440524,-151.0,0.00013,2]
[338232552,1726403440534,-152.891746,0.00013,2]
[338232553,1726403440544,-151.496786,0.00013,2]
[338232554,1726403440553,-151.0,0.00013,2]
[338232555,1726403440563,-151.0,0.00013,2]
[338232556,1726403440572,-151.0,0.00013,2]
[338232557,1726403440581,-151.0,0.00013,2]
[338232558,1726403440591,-895.49,0.00013,2]
[338232559,1726403440600,-151.0,0.00013,2]
[338232560,1726403440610,-151.0,0.00013,2]
[338232561,1726403440619,-151.0,0.00013,2]
[338232563,1726403440629,-151.0,0.00013,2]
[338232565,1726403440638,-151.0,0.00013,2]
[338232567,1726403440648,-151.0,0.00013,2]
[338232569,1726403440658,-151.0,0.00013,2]
[338232571,1726403440667,-151.0,0.00013,2]
[338232573,1726403440677,-249.568123,0.00013,2]
[338232574,1726403440687,-151.0,0.00013,2]
[338232575,1726403440697,-249.568123,0.00013,2]
[338232576,1726403440706,-151.0,0.00013,2]
[338232577,1726403440716,-249.568123,0.00013,2]
[338232578,1726403440725,-249.568123,0.00013,2]
[338232579,1726403440734,-2000.0,0.00013,2]
[338232580,1726403440744,-200.0,0.00013,2]
[338232581,1726403440753,-1030.971251,0.00013,2]
[338232582,1726403440763,-1030.971251,0.00013,2]
[338232583,1726403440772,-1030.971251,0.00013,2]
[338232584,1726403440781,-1030.971251,0.00013,2]
[338232585,1726403440791,-162.878276,0.00013,2]
[338232586,1726403440800,-162.878276,0.00013,2]
[338232587,1726403440809,-162.878276,0.00013,2]
[338232588,1726403440819,-162.878276,0.00013,2]
[338232589,1726403440829,-151.0,0.00013,2]
[338232590,1726403440838,-151.0,0.00013,2]
[338232591,1726403440847,-151.0,0.00013,2]
[338232592,1726403440857,-151.0,0.00013,2]
[338232593,1726403440866,-151.0,0.00013,2]
[338232594,1726403440925,-151.0,0.00013,2]
[338232595,1726403440934,-151.0,0.00013,2]
[338232596,1726403440943,-218.999722,0.00013,2]
[338232597,1726403440952,-151.0,0.00013,2]
[338232598,1726403440961,-151.0,0.00013,2]
[338232600,1726403440970,-151.0,0.00013,2]
[338232602,1726403440979,-151.0,0.00013,2]
[338232604,1726403440988,-151.0,0.00013,2]
[338232606,1726403440997,-245.192076,0.00013,2]
[338232607,1726403441006,-151.0,0.00013,2]
[338232609,1726403441014,-151.0,0.00013,2]
[338232611,1726403441025,-151.0,0.00013,2]
[338232613,1726403441034,-151.0,0.00013,2]
[338232614,1726403441043,-151.981497,0.00013,2]
[338232616,1726403441052,-1029.72738511,0.00013,2]
[338232618,1726403441061,-151.0,0.00013,2]
[338232620,1726403441069,-151.0,0.00013,2]
[338232622,1726403441078,-151.0,0.00013,2]
[338232623,1726403441087,-199.050106,0.00013,2]
[338232625,1726403441096,-199.050106,0.00013,2]
[338232627,1726403441105,-199.050106,0.00013,2]
[338232629,1726403441114,-199.050106,0.00013,2]
[338232631,1726403441123,-199.050106,0.00013,2]
[338232633,1726403441132,-199.050106,0.00013,2]
[338232635,1726403441141,-151.0,0.00013,2]
[338232637,1726403441150,-151.0,0.00013,2]
[338232639,1726403441172,-151.0,0.00013,2]
[338232640,1726403441181,-151.0,0.00013,2]
[338232642,1726403441190,-151.0,0.00013,2]
[338232644,1726403441200,-151.0,0.00013,2]
[338232646,1726403441209,-151.0,0.00013,2]
[338232648,1726403441219,-151.0,0.00013,2]
[338232651,1726403441229,-151.565334,0.00013,2]
[338232653,1726403441239,-151.0,0.00013,2]
[338232654,1726403441248,-151.0,0.00013,2]
[338232656,1726403441257,-151.0,0.00013,2]
[338232658,1726403441266,-151.0,0.00013,2]
[338232660,1726403441275,-151.0,0.00013,2]
[338232662,1726403441287,-151.0,0.00013,2]
[338232664,1726403441296,-151.0,0.00013,2]
[338232666,1726403441305,-154.280948,0.00013,2]
[338232668,1726403441314,-637.89262546,0.00013,2]
[338232670,1726403441325,-151.0,0.00013,2]
[338232671,1726403441334,-161.779464,0.00013,2]
[338232672,1726403441343,-310.6,0.00013,2]
[338232673,1726403441352,-293.051237,0.00013,2]
[338232674,1726403441361,-254.973321,0.00013,2]
[338232675,1726403441370,-254.973321,0.00013,2]
[338232676,1726403441380,-254.973321,0.00013,2]
[338232677,1726403441389,-254.973321,0.00013,2]
[338232678,1726403441399,-151.0,0.00013,2]
[338232679,1726403441414,-151.0,0.00013,2]
[338232680,1726403441423,-151.0,0.00013,2]
[338232681,1726403441432,-151.0,0.00013,2]
[338232682,1726403441441,-151.0,0.00013,2]
[338232683,1726403441450,-151.0,0.00013,2]
[338232684,1726403441459,-151.0,0.00013,2]
[338232685,1726403441468,-151.0,0.00013,2]
[338232686,1726403441478,-254.232217,0.00013,2]
[338232687,1726403441487,-254.232217,0.00013,2]
[338232688,1726403441496,-152.599624,0.00013,2]
[338232689,1726403441506,-151.0,0.00013,2]
[338232690,1726403441515,-162.244306,0.00013,2]
[338232691,1726403441524,-254.232217,0.00013,2]
[338232692,1726403441533,-254.232217,0.00013,2]
[338232693,1726403441542,-220.624694,0.00013,2]
[338232694,1726403441551,-220.624694,0.00013,2]
[338232695,1726403441560,-220.624694,0.00013,2]
[338232696,1726403441568,-220.624694,0.00013,2]
[338232697,1726403441577,-1010.02,0.00013,2]
[338232698,1726403441586,-200.0,0.00013,2]
[338232699,1726403441595,-2600815.440811,0.00013,2]
[338232700,1726403441871,-64190.72961886,0.00013,2]
[338232701,1726403441882,-3152.16,0.00013,2]
[338232702,1726403441893,-3162.60000008,0.00013,2]
[338232703,1726403441984,-1473.09420219,0.00013,2]
[338232704,1726403441998,-65076.82359592,0.00013,2]
[338232705,1726403442011,-330.12038383,0.00013,2]
[338232706,1726403442024,-645.18180464,0.00013,2]
[338232707,1726403442035,-222171.35066025,0.00013,2]
[338232708,1726403442066,250.0,0.00012094,2]
[338232709,1726403442078,-2616.92533353,0.00013,2]
[338232710,1726403442089,-2268.5,0.00013,2]
[338232711,1726403442099,-23152.70180402,0.00013,2]
[338232712,1726403442110,-1844.94999997,0.00013,2]
[338232713,1726403442120,-1015.75187423,0.00013,2]
[338232714,1726403442131,-14721.09369351,0.00013,2]
[338232715,1726403442143,-959.24343264,0.00013,2]
[338232721,1726403443288,-268.02886842,0.00012751,2]
[338232723,1726403443406,-1309.9999992,0.00012751,2]
[338232724,1726403443417,-686.6132303,0.00012751,2]
[338232725,1726403443429,-906.17357973,0.00012751,2]
[338232726,1726403443440,-267.96731775,0.00012751,2]
[338232727,1726403443451,-20809.1764867,0.00012751,2]
[338232728,1726403443463,-13362.89069369,0.00012751,2]
[338232729,1726403443472,-21942.34290758,0.00013,2]
[338232730,1726403443483,-34860.0,0.00013,2]
[338232731,1726403443502,-1547.21035976,0.00013,2]
[338232732,1726403443513,-3792.97760677,0.00013,2]
[338232733,1726403443526,-561.01467486,0.00013,2]
[338232734,1726403443537,-421.401,0.00013,2]
[338232735,1726403443548,-485.305,0.00013,2]
[338232736,1726403443560,-763.43869,0.00013,2]
[338232737,1726403443571,-8798.02859357,0.00013,2]
[338232738,1726403443582,-686.77,0.00013,2]
[338232743,1726403444457,-500.0,0.00013,2]
[338232744,1726403444472,-1184.50714639,0.00013,2]
[338232749,1726403446287,-2137.90186013,0.00013,2]
[338232750,1726403446345,-4834.0018473,0.00013,2]
[338232751,1726403446405,-47205.54089909,0.00013,2]
[338232934,1726403517053,737.6,0.00012248,2]
[338232935,1726403543931,205.98247987,0.00012274,2]
[338232936,1726403543968,44.01752013,0.00012274,2]
[338232937,1726403549060,500.0,0.00011164,2]
[338232938,1726403614286,500.0,0.00011164,2]
[338232939,1726403715592,358.60829081,0.00010289,2]
[338232940,1726403715620,307.87170919,0.00010289,2]
[338232941,1726403715808,666.48,0.00012553,2]
[338232942,1726403924329,116.2910645,0.00012321,2]
[338232943,1726403924357,133.7089355,0.00012321,2]
[338232944,1726404012357,863.47061501,0.000126,2]
[338232945,1726404012389,1110.68077235,0.000126,2]
[338232946,1726404012417,1211.43047537,0.000126,2]
[338232947,1726404012448,1262.42891019,0.000126,2]
[338232948,1726404012704,1531.42897116,0.000126,2]
[338232949,1726404012731,1115.25044188,0.000126,2]
[338232950,1726404012759,19474.72742369,0.000126,2]
[338232951,1726404142069,1000.0,0.00012264,2]
[338232952,1726404249835,599.83,0.00010367,2]
[338232953,1726404250335,599.83,0.00012631,2]
[338232954,1726404416579,250.0,0.00012204,2]
[338232955,1726404512796,250.0,0.00012262,2]
[338232956,1726404549859,16612.12,0.0001231,2]
[338232958,1726404602848,23912.47584873,0.000126,2]
[338232959,1726404630622,200.0,0.00012245,2]
[338232986,1726404637957,-150.0,0.00012699,2]
[338232988,1726404637967,-300.0,0.00012699,2]
[338232990,1726404637977,-783.64916876,0.000127,2]
[338232993,1726404637993,-216.35083124,0.000127,2]
[338232995,1726404638003,-13718.04916876,0.000127,2]
[338232997,1726404638014,-25151.29898074,0.000127,2]
[338232999,1726404638025,-1815.69636537,0.000127,2]
[338233002,1726404638041,-3163.29177813,0.000127,2]
[338233004,1726404638052,-1362.14790047,0.000127,2]
[338233007,1726404638067,-746.48651101,0.000127,2]
[338233009,1726404638078,-13509.68924109,0.000127,2]
[338233013,1726404638111,-794.30206266,0.000127,2]
[338233015,1726404638122,-868.00078551,0.000127,2]
[338233017,1726404638134,-251.38394006,0.000127,2]
[338233020,1726404638154,-582.75405,0.000127,2]
[338233023,1726404638165,-262.14000012,0.000127,2]
[338233029,1726404638225,-648.68264031,0.000127,2]
[338233145,1726404639355,-313.49941736,0.000127,2]
[338233147,1726404639367,-353.59275053,0.000127,2]
[338233152,1726404639411,-4409.69574016,0.000127,2]
[338233154,1726404639422,-32049.28866772,0.000127,2]
[338233156,1726404639432,-245000.0,0.000127,2]
[338233158,1726404639441,-500.0,0.000127,2]
[338233160,1726404639450,-9505.89447436,0.000127,2]
[338233162,1726404639459,-1098.0,0.000127,2]
[338233164,1726404639469,-167.23,0.0001272,2]
[338233166,1726404639478,-1000.0,0.000128,2]
[338233168,1726404639487,-23912.47584865,0.00012833,2]
[338233170,1726404639497,-150.0,0.00012849,2]
[338233172,1726404639506,-1280.01213,0.0001287,2]
[338233174,1726404639515,-171.778,0.0001289,2]
[338233176,1726404639524,-151.16962534,0.000129,2]
[338233177,1726404639534,-7500.0,0.000129,2]
[338233179,1726404639543,-1930.0,0.000129,2]
[338233181,1726404639552,-546.76,0.000129,2]
[338233183,1726404639562,-503.67445117,0.00012973,2]
[338233185,1726404639571,-500.0,0.00012973,2]
[338233187,1726404639580,-515.6669376,0.00012973,2]
[338233189,1726404639590,-151.98346748,0.00012999,2]
[338233191,1726404639600,-1597.01300106,0.00012999,2]
[338233193,1726404639610,-500.0,0.00012999,2]
[338233195,1726404639620,-500.0,0.00012999,2]
[338233197,1726404639629,-170.6487421,0.00012999,2]
[338233199,1726404639638,-332.48034913,0.00012999,2]
[338233201,1726404639648,-317.89508087,0.00013,2]
[338233203,1726404639657,-152.17020217,0.00013,2]
[338233205,1726404639666,-10748.84880263,0.00013,2]
[338233207,1726404639675,-852437.1513102,0.00013,2]
[338233208,1726404639684,-3057404.80215633,0.00013,2]
[338233211,1726404639703,-557.38108761,0.00013,2]
[338233214,1726404639717,-294638.06013843,0.00013,2]
[338233216,1726404639728,-1529.43690522,0.00013,2]
[338233218,1726404639744,-670.37,0.00013,2]
[338233486,1726404642485,-5296.76582824,0.00013,2]
[338233496,1726404642542,-403.92333797,0.00013,2]
[338233498,1726404642552,-7164.00848909,0.00013,2]
[338233628,1726404643834,-9956.95801704,0.00013,2]
[338233630,1726404643844,-10852.61019446,0.00013,2]
[338233632,1726404643860,-441.344958,0.00013,2]
[338233758,1726404645464,-754.85459043,0.00013,2]
[338233770,1726404645573,-912.85999773,0.00013,2]
[338233781,1726404645673,-1358.33273909,0.00013,2]
[338234012,1726404696306,1000.0,0.000126,2]
[338234013,1726404719698,100000.0,0.000126,2]
[338234014,1726404754559,500.0,0.000126,2]
[338234015,1726404758605,170.65,0.00012546,2]
[338234016,1726404764932,227516.7235,0.000126,2]
[338234017,1726404767375,579.42,0.00010641,2]
[338234018,1726404771798,500.0,0.00011164,2]
[338234019,1726404787820,1050.0,0.00011,2]
[338234020,1726404855412,150.0,0.0001252,2]
[338234021,1726404855433,296.0,0.0001252,2]
[338234022,1726404855455,524.55,0.0001252,2]
[338234023,1726404868878,300.0,0.00010959,2]
[338234024,1726404884415,240.23,0.00010959,2]
[338234025,1726404920851,150.0,0.00012533,2]
[338234026,1726404920874,100.0,0.00012533,2]
[338234027,1726405212352,407.29277667,0.00012603,2]
[338234028,1726405295101,500.00000001,0.0001,3]
[338234036,1726405440705,150.0,0.0001224,2]
[338234037,1726405440726,100.0,0.0001224,2]
[338234038,1726405447477,156.69,0.00010959,2]
[338234039,1726405485631,550.0,0.00011164,2]
[338234040,1726405486882,500.0,0.00011164,2]
[338234041,1726405499506,600.0,0.00010959,2]
[338234042,1726405505682,233.1,0.00010959,2]
[338234043,1726405508990,500.0,0.00011164,2]
[338234044,1726405530378,150.0,0.00011164,2]
[338234045,1726405530401,350.0,0.00011164,2]
[338234046,1726405550802,150.0,0.00012214,2]
[338234047,1726405550825,1189.15,0.00012214,2]
[338234048,1726405577096,150.0,0.00011164,2]
[338234049,1726405577117,150.0,0.00011164,2]
[338234050,1726405577139,150.0,0.00011164,2]
[338234051,1726405577161,50.0,0.00011164,2]
[338234052,1726405580851,100.0,0.00012217,2]
[338234053,1726405580872,150.0,0.00012217,2]
[338234054,1726405593678,106.68381115,0.00012217,2]
[338234055,1726405593699,192.09546603,0.00012217,2]
[338234056,1726405593723,896.23072282,0.00012217,2]
[338234057,1726405599077,500.0,0.00011164,2]
[338234058,1726405602585,300.0,0.00010959,2]
[338234059,1726405692845,160.0,0.00012329,2]
[338234060,1726405695293,667.7,0.00010411,2]
[338234064,1726405746194,229.76,0.00012293,2]
[338234073,1726405831588,-667.7,0.00012675,2]
[338234074,1726405831599,-3649.5812,0.00012702,2]
[338234075,1726405831609,-383.28,0.00012803,2]
[338234076,1726405831618,-1280.01214,0.0001287,2]
[338234077,1726405831628,-1609.07659621,0.00012899,2]
[338234078,1726405831637,-171.778,0.00012899,2]
[338234079,1726405831647,-150.0,0.00012899,2]
[338234080,1726405831656,-300.0,0.00012899,2]
[338234081,1726405831666,-1749.19,0.000129,2]
[338234082,1726405831675,-1154.97487909,0.000129,2]
[338234083,1726405831761,-60202.41592091,0.000129,2]
[338234084,1726405831770,-500.0,0.000129,2]
[338234085,1726405831780,-151.16962534,0.000129,2]
[338234086,1726405831789,-1280.01214,0.000129,2]
[338234087,1726405831799,-19843.24014449,0.000129,2]
[338234088,1726405831808,-1280.01214,0.0001293,2]
[338234089,1726405831818,-500.74359278,0.00012973,2]
[338234091,1726405831828,-150.99,0.00012973,2]
[338234093,1726405831837,-499.99,0.00012973,2]
[338234095,1726405831847,-500.0,0.00012973,2]
[338234097,1726405831856,-500.0,0.00012973,2]
[338234099,1726405831866,-500.0,0.00012973,2]
[338234100,1726405831875,-500.0,0.00012973,2]
[338234101,1726405831884,-150.99,0.00012973,2]
[338234102,1726405831894,-151.19,0.0001299,2]
[338234103,1726405831903,-197.90645454,0.0001299,2]
[338234104,1726405831913,-8763.3115535,0.00012993,2]
[338234105,1726405831923,-433.1136313,0.00012993,2]
[338234106,1726405831932,-227.5196081,0.00012993,2]
[338234107,1726405831942,-500.0,0.00012999,2]
[338234108,1726405831951,-422.89402082,0.00012999,2]
[338234109,1726405831964,-26828.45041615,0.00013,2]
[338234110,1726405831976,-250.31057213,0.00013,2]
[338234111,1726405837702,-23520.41692139,0.00013,2]
[338234112,1726405837713,-380.15909866,0.00013,2]
[338234113,1726405837749,-23935.43168912,0.00013,2]
[338234114,1726405837861,-408.0085986,0.00013,2]
[338234115,1726405837874,-1076.7,0.00013,2]
[338234116,1726405837886,-1154.54016205,0.00013,2]
[338234121,1726405838071,-8993.58888812,0.00013,2]
[338234122,1726405838083,-13157.2710806,0.00013,2]
[338234123,1726405838095,-930.51620209,0.00013,2]
[338234124,1726405838105,-5808.32989986,0.00013,2]
[338234125,1726405838134,-6958.2,0.00013,2]
[338234126,1726405838146,-13301.34632884,0.00013,2]
[338234127,1726405838157,-16792.55808578,0.00013,2]
[338234128,1726405838168,-467.14661128,0.00013,2]
[338234129,1726405838180,-15073.07401685,0.00013,2]
[338234130,1726405838192,-541.62115512,0.00013,2]
[338234131,1726405838204,-1288.78092525,0.00013,2]
[338234132,1726405838215,-2599.27479749,0.00013,2]
[338234231,1726405839562,-771.144,0.00013,2]
[338234232,1726405839574,-439.74707755,0.00013,2]
[338234233,1726405839619,-1002183.91443896,0.00013,2]
[338234234,1726405839629,-856.72,0.00013,2]
[338234235,1726405839638,-1100.0,0.00013,2]
[338234236,1726405839647,-2000.0,0.00013,2]
[338234237,1726405839656,-200.0,0.00013,2]
[338234238,1726405839665,-2000.0,0.00013,2]
[338234239,1726405839675,-200.0,0.00013,2]
[338234240,1726405839684,-211.94065042,0.00013,2]
[338234241,1726405839693,-152.17781068,0.00013,2]
[338234242,1726405839703,-303.58,0.00013,2]
[338234243,1726405839712,-1008.16,0.00013,2]
[338234244,1726405839722,-200.0,0.00013,2]
[338234245,1726405839731,-1280.01214,0.00013,2]
[338234246,1726405839741,-1280.01214,0.00013,2]
[338234247,1726405839750,-272.0441,0.00013,2]
[338234248,1726405839763,-1000.0,0.00013,2]
[338234249,1726405839772,-568.9988,0.00013,2]
[338234250,1726405839782,-200.0,0.00013,2]
[338234251,1726405839791,-8599.29401908,0.00013,2]
[338234252,1726405839801,-840.0,0.00013042,2]
[338234253,1726405839811,-272.04411,0.0001307,2]
[338234254,1726405839821,-19843.24014449,0.00013122,2]
[338234255,1726405839830,-166.86,0.00013129,2]
[338234256,1726405839840,-796.0,0.00013129,2]
[338234257,1726405839850,-796.0,0.00013129,2]
[338234258,1726405839860,-2000.0,0.0001313,2]
[338234259,1726405839870,-200.0,0.0001313,2]
[338234260,1726405839879,-2000.0,0.0001313,2]
[338234261,1726405839889,-200.0,0.0001313,2]
[338234262,1726405839899,-200.0,0.0001313,2]
[338234263,1726405839909,-200.0,0.0001313,2]
[338234265,1726405839919,-2000.0,0.00013261,2]
[338234267,1726405839928,-200.0,0.00013261,2]
[338234269,1726405839937,-895.02347848,0.00013261,2]
[338234271,1726405839947,-200.0,0.00013261,2]
[338234272,1726405839957,-200.0,0.00013261,2]
[338234273,1726405839967,-200.0,0.00013261,2]
[338234274,1726405839976,-357.62,0.000133,2]
[338234275,1726405839986,-150.0,0.00013309,2]
[338234277,1726405839995,-19843.24014449,0.00013344,2]
[338234279,1726405840007,-272.04411,0.0001338,2]
[338234280,1726405840016,-2000.0,0.00013394,2]